fUST/lending_fUST_20250514
["ID","MTS","AMOUNT","RATE_DAILY","PERIOD"]
[360966100,1747167054604,-400.0,0.00014794,2]
[360966101,1747167054616,-400.0,0.00014794,2]
[360966102,1747167054628,-265.54232525,0.00014794,2]
[360966103,1747167054640,-168.878837,0.00014794,2]
[360966104,1747167054651,-168.878837,0.00014794,2]
[360966105,1747167054663,-168.878837,0.00014794,2]
[360966106,1747167054674,-168.878837,0.00014794,2]
[360966107,1747167054685,-400.0,0.00014794,2]
[360966108,1747167054696,-519.08,0.00014794,2]
[360966109,1747167054707,-400.0,0.00014794,2]
[360966110,1747167054718,-400.0,0.00014794,2]
[360966111,1747167054729,-554.68,0.00014794,2]
[360966112,1747167054740,-400.0,0.00014794,2]
[360966113,1747167054751,-677.9,0.00014794,2]
[360966114,1747167054762,-400.0,0.00014794,2]
[360966115,1747167054773,-537.08,0.00014794,2]
[360966116,1747167054784,-400.0,0.00014794,2]
[360966117,1747167054795,-1568.72,0.00014794,2]
[360966118,1747167054806,-1173.98,0.00014794,2]
[360966119,1747167054818,-400.0,0.00014794,2]
[360966120,1747167054829,-412.71,0.00014794,2]
[360966121,1747167054839,-824.92,0.00014794,2]
[360966122,1747167054851,-478.83,0.00014794,2]
[360966123,1747167054861,-400.0,0.00014794,2]
[360966124,1747167054872,-400.0,0.00014794,2]
[360966125,1747167054883,-911.31,0.00014794,2]
[360966126,1747167054895,-400.0,0.00014794,2]
[360966127,1747167054906,-400.0,0.00014794,2]
[360966128,1747167054917,-400.0,0.00014794,2]
[360966129,1747167054928,-490.92,0.00014794,2]
[360966130,1747167054939,-1156.89,0.00014794,2]
[360966131,1747167054951,-400.0,0.00014794,2]
[360966132,1747167054963,-400.0,0.00014794,2]
[360966133,1747167054975,-1829.54,0.00014794,2]
[360966134,1747167054986,-452.45,0.00014794,2]
[360966135,1747167054998,-400.0,0.00014794,2]
[360966136,1747167055010,-400.0,0.00014794,2]
[360966137,1747167055021,-400.0,0.00014794,2]
[360966138,1747167055032,-400.0,0.00014794,2]
[360966139,1747167055043,-667.14,0.00014794,2]
[360966140,1747167055054,-460.84,0.00014794,2]
[360966141,1747167055065,-414.415313,0.00014794,2]
[360966142,1747167055076,-414.415313,0.00014794,2]
[360966143,1747167055087,-441.12,0.00014794,2]
[360966144,1747167055098,-400.0,0.00014794,2]
[360966145,1747167055110,-414.415313,0.00014794,2]
[360966146,1747167055121,-414.415313,0.00014794,2]
[360966147,1747167055131,-400.0,0.00014794,2]
[360966148,1747167055142,-787.68,0.00014794,2]
[360966149,1747167055152,-400.0,0.00014794,2]
[360966150,1747167055163,-724.73,0.00014794,2]
[360966151,1747167055174,-400.0,0.00014794,2]
[360966152,1747167055186,-511.73,0.00014794,2]
[360966153,1747167055196,-402.88,0.00014794,2]
[360966154,1747167055206,-1261.73,0.00014794,2]
[360966155,1747167055217,-400.0,0.00014794,2]
[360966156,1747167055228,-400.0,0.00014794,2]
[360966157,1747167055239,-400.0,0.00014794,2]
[360966158,1747167055249,-400.0,0.00014794,2]
[360966159,1747167055260,-623.28,0.00014794,2]
[360966160,1747167055271,-1223.85,0.00014794,2]
[360966161,1747167055282,-400.0,0.00014794,2]
[360966162,1747167055292,-813.54,0.00014794,2]
[360966163,1747167055303,-410.86,0.00014794,2]
[360966164,1747167055314,-610.29,0.00014794,2]
[360966165,1747167055324,-509.2,0.00014794,2]
[360966166,1747167055336,-400.0,0.00014794,2]
[360966167,1747167055348,-539.25,0.00014794,2]
[360966168,1747167055360,-400.0,0.00014794,2]
[360966169,1747167055371,-900.7,0.00014794,2]
[360966170,1747167055383,-531.75,0.00014794,2]
[360966171,1747167055393,-400.0,0.00014794,2]
[360966172,1747167055404,-691.03,0.00014794,2]
[360966173,1747167055415,-1837.6,0.00014794,2]
[360966174,1747167055426,-400.0,0.00014794,2]
[360966175,1747167055437,-403.55,0.00014794,2]
[360966176,1747167055447,-410.71,0.00014794,2]
[360966177,1747167055459,-400.0,0.00014794,2]
[360966178,1747167055470,-1319.78,0.00014794,2]
[360966179,1747167055480,-400.0,0.00014794,2]
[360966180,1747167055491,-568.75,0.00014794,2]
[360966181,1747167055501,-1242.85,0.00014794,2]
[360966182,1747167055512,-1035.6,0.00014794,2]
[360966183,1747167055523,-790.4,0.00014794,2]
[360966184,1747167055534,-614.67,0.00014794,2]
[360966185,1747167055544,-400.0,0.00014794,2]
[360966186,1747167055555,-576.54,0.00014794,2]
[360966187,1747167055565,-400.0,0.00014794,2]
[360966188,1747167055576,-400.0,0.00014794,2]
[360966189,1747167055587,-400.0,0.00014794,2]
[360966190,1747167055598,-403.98,0.00014794,2]
[360966191,1747167055609,-1765.54,0.00014794,2]
[360966192,1747167055620,-400.0,0.00014794,2]
[360966193,1747167055631,-400.0,0.00014794,2]
[360966194,1747167055643,-1151.3,0.00014794,2]
[360966195,1747167055654,-400.0,0.00014794,2]
[360966196,1747167055665,-427.38,0.00014794,2]
[360966197,1747167055675,-400.0,0.00014794,2]
[360966198,1747167055686,-422.65,0.00014794,2]
[360966199,1747167055697,-400.0,0.00014794,2]
[360966200,1747167055708,-400.0,0.00014794,2]
[360966201,1747167055719,-463.81,0.00014794,2]
[360966202,1747167055730,-862.18,0.00014794,2]
[360966203,1747167055740,-519.43,0.00014794,2]
[360966204,1747167055751,-400.0,0.00014794,2]
[360966205,1747167055761,-400.0,0.00014794,2]
[360966206,1747167055772,-400.0,0.00014794,2]
[360966207,1747167055783,-869.16,0.00014794,2]
[360966208,1747167055794,-400.0,0.00014794,2]
[360966209,1747167055804,-271.75075273,0.00014794,2]
[360966210,1747167055815,-649.91,0.00014794,2]
[360966211,1747167055826,-530.89,0.00014794,2]
[360966212,1747167055836,-400.0,0.00014794,2]
[360966213,1747167055847,-404.88,0.00014794,2]
[360966214,1747167055858,-400.0,0.00014794,2]
[360966215,1747167055869,-400.0,0.00014794,2]
[360966216,1747167055879,-400.0,0.00014794,2]
[360966217,1747167055890,-414.63,0.00014794,2]
[360966218,1747167055900,-400.0,0.00014794,2]
[360966219,1747167055911,-400.0,0.00014794,2]
[360966220,1747167055922,-477.7,0.00014794,2]
[360966221,1747167055933,-1200.84,0.00014794,2]
[360966222,1747167055944,-400.0,0.00014794,2]
[360966223,1747167055955,-400.0,0.00014794,2]
[360966224,1747167055966,-460.54,0.00014794,2]
[360966225,1747167055976,-516.69,0.00014794,2]
[360966226,1747167055987,-901.08,0.00014794,2]
[360966227,1747167055997,-454.51,0.00014794,2]
[360966228,1747167056009,-695.34,0.00014794,2]
[360966229,1747167056019,-400.0,0.00014794,2]
[360966230,1747167056031,-400.0,0.00014794,2]
[360966231,1747167056042,-400.09,0.00014794,2]
[360966232,1747167056053,-400.0,0.00014794,2]
[360966233,1747167056065,-400.0,0.00014794,2]
[360966234,1747167056076,-408.76,0.00014794,2]
[360966235,1747167056087,-1509.55,0.00014794,2]
[360966236,1747167056097,-815.35,0.00014794,2]
[360966237,1747167056107,-400.0,0.00014794,2]
[360966238,1747167056117,-348.42419703,0.00014794,2]
[360966239,1747167056128,-1163.81,0.00014794,2]
[360966240,1747167056139,-430.27,0.00014794,2]
[360966241,1747167056150,-400.0,0.00014794,2]
[360966242,1747167056161,-679.9,0.00014794,2]
[360966243,1747167056173,-400.0,0.00014794,2]
[360966244,1747167056184,-428.26,0.00014794,2]
[360966245,1747167056195,-874.46,0.00014794,2]
[360966246,1747167056205,-490.0,0.00014794,2]
[360966247,1747167056216,-400.0,0.00014794,2]
[360966248,1747167056227,-400.0,0.00014794,2]
[360966249,1747167056237,-179.38599196,0.00014794,2]
[360966250,1747167056248,-400.0,0.00014794,2]
[360966251,1747167056260,-500.0,0.00014794,2]
[360966252,1747167056271,-849.99,0.00014794,2]
[360966253,1747167056282,-801.59,0.00014794,2]
[360966254,1747167056293,-520.13,0.00014794,2]
[360966255,1747167056303,-326.57333338,0.00014794,2]
[360966256,1747167056314,-2645.4,0.00014794,2]
[360966257,1747167056326,-400.0,0.00014794,2]
[360966258,1747167056341,-400.0,0.00014794,2]
[360966259,1747167056351,-400.0,0.00014794,2]
[360966260,1747167056363,-1819.63,0.00014794,2]
[360966261,1747167056376,-1325.44,0.00014794,2]
[360966262,1747167056387,-773.6,0.00014794,2]
[360966263,1747167056399,-1724.59,0.00014794,2]
[360966264,1747167056410,-419.98,0.00014794,2]
[360966265,1747167056420,-857.46,0.00014794,2]
[360966266,1747167056431,-400.0,0.00014794,2]
[360966267,1747167056443,-400.0,0.00014794,2]
[360966268,1747167056455,-1982.36,0.00014794,2]
[360966269,1747167056800,-3349.46,0.00014794,2]
[360966270,1747167056810,-1971.51,0.00014794,2]
[360966271,1747167056821,-400.0,0.00014794,2]
[360966272,1747167056831,-400.0,0.00014794,2]
[360966273,1747167056840,-400.0,0.00014794,2]
[360966274,1747167056851,-738.21,0.00014794,2]
[360966275,1747167056863,-422.73,0.00014794,2]
[360966276,1747167056873,-1218.13,0.00014794,2]
[360966277,1747167056883,-400.0,0.00014794,2]
[360966278,1747167056892,-212.22822194,0.00014794,2]
[360966279,1747167056902,-400.0,0.00014794,2]
[360966280,1747167056912,-1595.08,0.00014794,2]
[360966281,1747167056922,-458.23,0.00014794,2]
[360966282,1747167056932,-3749.57,0.00014794,2]
[360966283,1747167056943,-400.0,0.00014794,2]
[360966284,1747167056952,-779.82,0.00014794,2]
[360966285,1747167056962,-15029.04,0.00014794,2]
[360966286,1747167056972,-400.0,0.00014794,2]
[360966287,1747167056982,-400.0,0.00014794,2]
[360966288,1747167056991,-400.0,0.00014794,2]
[360966289,1747167057001,-400.0,0.00014794,2]
[360966290,1747167057010,-881.02,0.00014794,2]
[360966291,1747167057024,-2559.66,0.00014794,2]
[360966292,1747167057034,-1555.67,0.00014794,2]
[360966293,1747167057043,-578.85,0.00014794,2]
[360966294,1747167057054,-400.0,0.00014794,2]
[360966295,1747167057064,-202.32131,0.00014794,2]
[360966296,1747167057074,-202.32131,0.00014794,2]
[360966297,1747167057084,-492.72,0.00014794,2]
[360966298,1747167057094,-2548.47,0.00014794,2]
[360966299,1747167057103,-202.32131,0.00014794,2]
[360966300,1747167057113,-202.32131,0.00014794,2]
[360966301,1747167057123,-400.0,0.00014794,2]
[360966302,1747167057133,-359.60740746,0.00014794,2]
[360966303,1747167057143,-400.0,0.00014794,2]
[360966304,1747167057153,-1775.02,0.00014794,2]
[360966305,1747167057162,-400.0,0.00014794,2]
[360966306,1747167057172,-404.67,0.00014794,2]
[360966307,1747167057182,-3518.41,0.00014794,2]
[360966308,1747167057192,-1226.83,0.00014794,2]
[360966309,1747167057202,-1695.56,0.00014794,2]
[360966310,1747167057212,-400.0,0.00014794,2]
[360966311,1747167057222,-2493.08,0.00014794,2]
[360966312,1747167057232,-1744.8,0.00014794,2]
[360966313,1747167057242,-400.0,0.00014794,2]
[360966314,1747167057252,-1755.63,0.00014794,2]
[360966315,1747167057263,-519.96,0.00014794,2]
[360966316,1747167057273,-2613.08,0.00014794,2]
[360966317,1747167057283,-2989.05,0.00014794,2]
[360966318,1747167057293,-598.43,0.00014794,2]
[360966319,1747167057304,-400.0,0.00014794,2]
[360966320,1747167057314,-400.0,0.00014794,2]
[360966321,1747167057324,-400.0,0.00014794,2]
[360966322,1747167057334,-400.0,0.00014794,2]
[360966323,1747167057348,-1260.79,0.00014794,2]
[360966324,1747167057358,-417.63,0.00014794,2]
[360966325,1747167057369,-3249.88,0.00014794,2]
[360966326,1747167057379,-9303.72,0.00014794,2]
[360966327,1747167057388,-422.87,0.00014794,2]
[360966328,1747167057399,-400.0,0.00014794,2]
[360966329,1747167057409,-3579.06,0.00014794,2]
[360966330,1747167057419,-400.0,0.00014794,2]
[360966331,1747167057429,-2820.85,0.00014794,2]
[360966332,1747167057439,-400.0,0.00014794,2]
[360966333,1747167057449,-578.71,0.00014794,2]
[360966334,1747167057460,-708.08,0.00014794,2]
[360966335,1747167057469,-1081.48,0.00014794,2]
[360966336,1747167057480,-400.0,0.00014794,2]
[360966337,1747167057489,-1966.8,0.00014794,2]
[360966338,1747167057499,-434.27,0.00014794,2]
[360966339,1747167057509,-400.0,0.00014794,2]
[360966340,1747167057520,-530.39,0.00014794,2]
[360966341,1747167057530,-805.93,0.00014794,2]
[360966342,1747167057541,-400.0,0.00014794,2]
[360966343,1747167057551,-797.76,0.00014794,2]
[360966344,1747167057561,-689.78,0.00014794,2]
[360966345,1747167057572,-470.41,0.00014794,2]
[360966346,1747167057582,-2156.6,0.00014794,2]
[360966347,1747167057593,-400.0,0.00014794,2]
[360966348,1747167057603,-961.67,0.00014794,2]
[360966349,1747167057617,-435.13,0.00014794,2]
[360966350,1747167057628,-414.11,0.00014794,2]
[360966351,1747167057639,-486.54,0.00014794,2]
[360966352,1747167057649,-899.8,0.00014794,2]
[360966353,1747167057659,-566.02,0.00014794,2]
[360966354,1747167057670,-423.6,0.00014794,2]
[360966355,1747167057680,-451.11,0.00014794,2]
[360966356,1747167057689,-400.0,0.00014794,2]
[360966357,1747167057699,-400.0,0.00014794,2]
[360966358,1747167057709,-4372.58,0.00014794,2]
[360966359,1747167057719,-1906.67,0.00014794,2]
[360966360,1747167057729,-1891.4,0.00014794,2]
[360966361,1747167057739,-400.0,0.00014794,2]
[360966362,1747167057748,-486.04,0.00014794,2]
[360966363,1747167057758,-445.28,0.00014794,2]
[360966364,1747167057768,-773.93,0.00014794,2]
[360966365,1747167057778,-478.8,0.00014794,2]
[360966366,1747167057787,-400.0,0.00014794,2]
[360966367,1747167057798,-2464.89,0.00014794,2]
[360966368,1747167057807,-3800.89,0.00014794,2]
[360966369,1747167057818,-400.0,0.00014794,2]
[360966370,1747167057827,-400.0,0.00014794,2]
[360966371,1747167057837,-716.99,0.00014794,2]
[360966372,1747167057847,-1179.73,0.00014794,2]
[360966373,1747167057860,-1338.76,0.00014794,2]
[360966374,1747167057870,-269.87544709,0.00014794,2]
[360966375,1747167057880,-265.64400247,0.00014794,2]
[360966376,1747167057890,-971.74,0.00014794,2]
[360966377,1747167057900,-400.0,0.00014794,2]
[360966378,1747167057910,-2312.11,0.00014794,2]
[360966379,1747167057919,-400.0,0.00014794,2]
[360966380,1747167057929,-755.25,0.00014794,2]
[360966381,1747167057938,-400.0,0.00014794,2]
[360966382,1747167057947,-252.30087432,0.00014794,2]
[360966383,1747167057956,-753.51,0.00014794,2]
[360966384,1747167057965,-5558.39,0.00014794,2]
[360966385,1747167057974,-400.0,0.00014794,2]
[360966386,1747167057984,-2506.43,0.00014794,2]
[360966387,1747167057993,-785.57,0.00014794,2]
[360966388,1747167058002,-400.0,0.00014794,2]
[360966389,1747167058011,-7798.66,0.00014794,2]
[360966390,1747167058019,-1588.77,0.00014794,2]
[360966391,1747167058029,-400.0,0.00014794,2]
[360966392,1747167058040,-999.36,0.00014794,2]
[360966393,1747167058050,-904.72,0.00014794,2]
[360966394,1747167058061,-400.0,0.00014794,2]
[360966395,1747167058071,-500.0,0.00014794,2]
[360966396,1747167058082,-922.17,0.00014794,2]
[360966397,1747167058092,-1685.99,0.00014794,2]
[360966398,1747167058101,-536.25,0.00014794,2]
[360966399,1747167058115,-1142.33,0.00014794,2]
[360966400,1747167058124,-400.0,0.00014794,2]
[360966401,1747167058133,-400.0,0.00014794,2]
[360966402,1747167058142,-2291.72,0.00014794,2]
[360966403,1747167058152,-532.21,0.00014794,2]
[360966404,1747167058162,-944.0,0.00014794,2]
[360966405,1747167058171,-3954.06,0.00014794,2]
[360966406,1747167058181,-400.0,0.00014794,2]
[360966407,1747167058191,-400.0,0.00014794,2]
[360966408,1747167058201,-1920.27,0.00014794,2]
[360966409,1747167058211,-405.71,0.00014794,2]
[360966410,1747167058220,-400.0,0.00014794,2]
[360966411,1747167058230,-400.0,0.00014794,2]
[360966412,1747167058240,-813.97,0.00014794,2]
[360966413,1747167058251,-411.6,0.00014794,2]
[360966414,1747167058262,-400.0,0.00014794,2]
[360966415,1747167058271,-841.74,0.00014794,2]
[360966416,1747167058283,-368.524129,0.00014794,2]
[360966417,1747167058294,-368.524129,0.00014794,2]
[360966418,1747167058303,-2729.39,0.00014794,2]
[360966419,1747167058313,-1151.82,0.00014794,2]
[360966420,1747167058323,-940.95,0.00014794,2]
[360966421,1747167058334,-400.0,0.00014794,2]
[360966422,1747167058346,-368.524129,0.00014794,2]
[360966423,1747167058356,-368.524129,0.00014794,2]
[360966424,1747167058366,-400.0,0.00014794,2]
[360966425,1747167058377,-400.0,0.00014794,2]
[360966426,1747167058387,-975.25,0.00014794,2]
[360966427,1747167058396,-400.0,0.00014794,2]
[360966428,1747167058406,-4464.88,0.00014794,2]
[360966429,1747167058417,-2234.09,0.00014794,2]
[360966430,1747167058427,-1008.05,0.00014794,2]
[360966431,1747167058437,-11176.64,0.00014794,2]
[360966432,1747167058447,-3892.27,0.00014794,2]
[360966433,1747167058456,-411.65,0.00014794,2]
[360966434,1747167058466,-668.35,0.00014794,2]
[360966435,1747167058476,-400.0,0.00014794,2]
[360966436,1747167058487,-1305.97,0.00014794,2]
[360966437,1747167058497,-400.0,0.00014794,2]
[360966438,1747167058507,-3156.03,0.00014794,2]
[360966439,1747167058517,-710.33,0.00014794,2]
[360966440,1747167058526,-615.01,0.00014794,2]
[360966441,1747167058536,-462.82,0.00014794,2]
[360966442,1747167058545,-2885.66,0.00014794,2]
[360966443,1747167058555,-1343.84,0.00014794,2]
[360966444,1747167058565,-400.0,0.00014794,2]
[360966445,1747167058575,-8218.67,0.00014794,2]
[360966446,1747167058585,-503.02,0.00014794,2]
[360966447,1747167058594,-4309.04,0.00014794,2]
[360966448,1747167058604,-860.31249966,0.00014795,2]
[360966449,1747167058615,-3927.92451904,0.000149,2]
[360966450,1747167058890,-6457.33182499,0.000149,2]
[360966451,1747167058902,-2663.1,0.000149,2]
[360966459,1747168044340,-5000.0,0.00012261,2]
[360966460,1747168044363,-254.5611619,0.0001253,2]
[360966461,1747168044386,-1451.5394968,0.00012636,2]
[360966462,1747168044409,-191.788572,0.00012774,2]
[360966463,1747168044433,-171.564697,0.00013281,3]
[360966464,1747168044456,-336.65090899,0.00013342,2]
[360966465,1747168044480,-51.63706481,0.00013389,2]
[360966466,1747168048522,-114.36293519,0.00013389,2]
[360966467,1747168048546,-171.564697,0.0001339,3]
[360966468,1747168048570,-176.670675,0.0001339,3]
[360966469,1747168048592,-151.767081,0.0001339,3]
[360966470,1747168048616,-169.48369023,0.00013419,2]
[360966855,1747168243397,-303.37457605,0.00013122,2]
[360967176,1747168246435,-4696.62542395,0.00013122,2]
[360967177,1747168246446,-173.645707,0.0001339,3]
[360967178,1747168246456,-359.6879911,0.00013493,2]
[360967179,1747168246466,-300.0,0.00013512,2]
[360967180,1747168246476,-155.21434506,0.00013598,2]
[360967181,1747168246487,-500.0,0.00013696,2]
[360967182,1747168246497,-500.0,0.00013696,2]
[360967183,1747168246507,-426.47203587,0.00013696,2]
[360967184,1747168246517,-1740.0000008,0.00013697,2]
[360967185,1747168246527,-500.0,0.00013697,2]
[360967186,1747168246538,-500.0,0.00013697,2]
[360967187,1747168246547,-334.57617822,0.00013697,2]
[360967188,1747168246557,-329.5781958,0.00013697,2]
[360967189,1747168246566,-400.0,0.00013698,2]
[360967190,1747168246576,-400.0,0.00013698,2]
[360967191,1747168246586,-405.12,0.00013698,2]
[360967192,1747168246596,-400.0,0.00013698,2]
[360967193,1747168246606,-400.0,0.00013698,2]
[360967194,1747168246615,-400.0,0.00013698,2]
[360967195,1747168246625,-400.0,0.00013698,2]
[360967196,1747168246636,-400.0,0.00013698,2]
[360967197,1747168246645,-400.0,0.00013698,2]
[360967198,1747168246655,-400.0,0.00013698,2]
[360967199,1747168246664,-400.0,0.00013698,2]
[360967200,1747168246674,-400.0,0.00013698,2]
[360967201,1747168246683,-400.0,0.00013698,2]
[360967202,1747168246693,-400.0,0.00013698,2]
[360967203,1747168246703,-400.0,0.00013698,2]
[360967204,1747168246716,-713.05,0.00013698,2]
[360967205,1747168246726,-547.06,0.00013698,2]
[360967206,1747168246736,-400.0,0.00013698,2]
[360967207,1747168246746,-400.0,0.00013698,2]
[360967208,1747168246756,-400.0,0.00013698,2]
[360967209,1747168246765,-819.85,0.00013698,2]
[360967210,1747168246775,-400.0,0.00013698,2]
[360967211,1747168246785,-400.0,0.00013698,2]
[360967212,1747168246795,-420.96,0.00013698,2]
[360967213,1747168246805,-400.0,0.00013698,2]
[360967214,1747168246815,-400.0,0.00013698,2]
[360967215,1747168246825,-400.0,0.00013698,2]
[360967216,1747168246834,-400.0,0.00013698,2]
[360967217,1747168246847,-400.0,0.00013698,2]
[360967218,1747168246857,-400.0,0.00013698,2]
[360967219,1747168246866,-400.0,0.00013698,2]
[360967220,1747168246876,-400.0,0.00013698,2]
[360967221,1747168246888,-456.43,0.00013698,2]
[360967222,1747168246898,-400.0,0.00013698,2]
[360967223,1747168246907,-400.0,0.00013698,2]
[360967224,1747168246918,-400.0,0.00013698,2]
[360967225,1747168246927,-400.0,0.00013698,2]
[360967226,1747168246938,-400.0,0.00013698,2]
[360967227,1747168246947,-400.0,0.00013698,2]
[360967228,1747168246957,-713.35,0.00013698,2]
[360967229,1747168246967,-400.0,0.00013698,2]
[360967230,1747168246977,-950.66,0.00013698,2]
[360967231,1747168246987,-400.0,0.00013698,2]
[360967232,1747168246997,-431.41,0.00013698,2]
[360967233,1747168247006,-400.0,0.00013698,2]
[360967234,1747168247016,-400.0,0.00013698,2]
[360967235,1747168247026,-400.0,0.00013698,2]
[360967236,1747168247035,-400.0,0.00013698,2]
[360967238,1747168247044,-400.0,0.00013698,2]
[360967240,1747168247054,-420.29,0.00013698,2]
[360967241,1747168247064,-242.79762912,0.00013698,2]
[360967242,1747168247074,-400.0,0.00013698,2]
[360967243,1747168247084,-400.0,0.00013698,2]
[360967244,1747168247093,-400.0,0.00013698,2]
[360967245,1747168247103,-450.26,0.00013698,2]
[360967247,1747168247113,-400.0,0.00013698,2]
[360967249,1747168247123,-400.0,0.00013698,2]
[360967250,1747168247133,-400.0,0.00013698,2]
[360967251,1747168247144,-486.62,0.00013698,2]
[360967252,1747168247154,-400.0,0.00013698,2]
[360967253,1747168247164,-409.05,0.00013698,2]
[360967254,1747168247174,-400.0,0.00013698,2]
[360967255,1747168247184,-400.0,0.00013698,2]
[360967256,1747168247194,-400.0,0.00013698,2]
[360967257,1747168247204,-174.40956477,0.00013698,2]
[360967258,1747168247214,-400.0,0.00013698,2]
[360967259,1747168247224,-400.0,0.00013698,2]
[360967260,1747168247235,-915.87,0.00013698,2]
[360967261,1747168247244,-612.43,0.00013698,2]
[360967262,1747168247254,-400.0,0.00013698,2]
[360967263,1747168247264,-400.0,0.00013698,2]
[360967264,1747168247274,-400.0,0.00013698,2]
[360967265,1747168247284,-400.0,0.00013698,2]
[360967266,1747168247294,-550.48,0.00013698,2]
[360967267,1747168247304,-400.0,0.00013698,2]
[360967268,1747168247314,-400.0,0.00013698,2]
[360967269,1747168247325,-400.0,0.00013698,2]
[360967270,1747168247336,-400.0,0.00013698,2]
[360967271,1747168247346,-400.0,0.00013698,2]
[360967272,1747168247356,-400.0,0.00013698,2]
[360967273,1747168247366,-400.0,0.00013698,2]
[360967274,1747168247377,-400.0,0.00013698,2]
[360967275,1747168247388,-1195.06,0.00013698,2]
[360967276,1747168247398,-400.0,0.00013698,2]
[360967277,1747168247408,-1448.39,0.00013698,2]
[360967278,1747168247418,-400.0,0.00013698,2]
[360967279,1747168247428,-400.0,0.00013698,2]
[360967280,1747168247439,-400.0,0.00013698,2]
[360967281,1747168247448,-483.15,0.00013698,2]
[360967282,1747168247458,-400.0,0.00013698,2]
[360967283,1747168247468,-400.0,0.00013698,2]
[360967284,1747168247478,-400.0,0.00013698,2]
[360967285,1747168247488,-400.0,0.00013698,2]
[360967286,1747168247498,-929.4,0.00013698,2]
[360967287,1747168247508,-400.0,0.00013698,2]
[360967288,1747168247518,-400.0,0.00013698,2]
[360967289,1747168247528,-573.75,0.00013698,2]
[360967290,1747168247537,-400.0,0.00013698,2]
[360967291,1747168247547,-400.0,0.00013698,2]
[360967292,1747168247557,-400.0,0.00013698,2]
[360967293,1747168247567,-212.02428906,0.00013698,2]
[360967316,1747169235131,-5000.0,0.00012244,2]
[360967317,1747169235153,-165.38893651,0.00012368,2]
[360967318,1747169235175,-164.7785177,0.00012698,2]
[360967319,1747169235197,-214.31441853,0.00013121,2]
[360967320,1747169235219,-652.61296533,0.00013477,2]
[360967321,1747169235241,-1190.0,0.00013696,2]
[360967322,1747169235266,-213.85477549,0.00013697,2]
[360967323,1747169235289,-300.0,0.00013697,2]
[360967324,1747169235311,-400.0,0.00013698,2]
[360967325,1747169235332,-46.91703843,0.00013698,2]
[360967326,1747169240119,-248.96912346,0.00013698,2]
[360967354,1747169432448,-400.0,0.00013698,2]
[360967355,1747169432458,-606.0,0.00013698,2]
[360967356,1747169432469,-400.0,0.00013698,2]
[360967361,1747169432717,-400.0,0.00013698,2]
[360967362,1747169432728,-400.0,0.00013698,2]
[360967363,1747169432740,-400.0,0.00013698,2]
[360967364,1747169432750,-400.0,0.00013698,2]
[360967365,1747169432759,-400.0,0.00013698,2]
[360967366,1747169432769,-400.0,0.00013698,2]
[360967367,1747169432778,-400.0,0.00013698,2]